[Event "Early-Titled-Tuesday-Blitz-August-29-2023"]
[Site "Chess.com"]
[Date "2023.08.29"]
[Round "6"]
[White "Semetey"]
[Black "Herzog2012"]
[Result "0-1"]
[WhiteElo "2591"]
[BlackElo "2432"]
[TimeControl "180+1"]
[EndTime "9:07:00 PDT"]
[Termination "Herzog2012 won on time"]

1. e4 {[%clk 0:02:54.3]} 1... c5 {[%clk 0:02:57]} 2. Nf3 {[%clk 0:02:53.4]} 2...
Nc6 {[%clk 0:02:56.5]} 3. d4 {[%clk 0:02:54.3]} 3... cxd4 {[%clk 0:02:52.5]} 4.
Nxd4 {[%clk 0:02:55.2]} 4... Nf6 {[%clk 0:02:53.1]} 5. Nc3 {[%clk 0:02:55.2]}
5... d6 {[%clk 0:02:53.1]} 6. Bg5 {[%clk 0:02:51.7]} 6... e6 {[%clk 0:02:52.9]}
7. Qd2 {[%clk 0:02:50.8]} 7... Be7 {[%clk 0:02:53.1]} 8. f3 {[%clk 0:02:49.3]}
8... O-O {[%clk 0:02:53]} 9. O-O-O {[%clk 0:02:48.6]} 9... a6 {[%clk 0:02:52.2]}
10. h4 {[%clk 0:02:46.6]} 10... Qc7 {[%clk 0:02:51.7]} 11. Kb1 {[%clk
0:02:41.2]} 11... Rd8 {[%clk 0:02:47.7]} 12. f4 {[%clk 0:02:09.5]} 12... Nxd4
{[%clk 0:02:12.5]} 13. Qxd4 {[%clk 0:02:08.7]} 13... b5 {[%clk 0:02:11.3]} 14.
Be2 {[%clk 0:02:03.5]} 14... b4 {[%clk 0:01:54.3]} 15. Na4 {[%clk 0:01:59.6]}
15... Rb8 {[%clk 0:01:51.6]} 16. b3 {[%clk 0:01:56]} 16... Bd7 {[%clk 0:01:51]}
17. Nb2 {[%clk 0:01:55.4]} 17... Bc6 {[%clk 0:01:42]} 18. Bf3 {[%clk 0:01:52.1]}
18... a5 {[%clk 0:01:38.9]} 19. h5 {[%clk 0:01:46]} 19... h6 {[%clk 0:01:35.4]}
20. Bh4 {[%clk 0:01:45.9]} 20... Rbc8 {[%clk 0:01:28.5]} 21. Rd2 {[%clk
0:01:39.7]} 21... d5 {[%clk 0:01:13.3]} 22. e5 {[%clk 0:01:37.2]} 22... Ne4
{[%clk 0:01:12.5]} 23. Bxe4 {[%clk 0:01:37]} 23... dxe4 {[%clk 0:01:12.6]} 24.
Qe3 {[%clk 0:01:37.4]} 24... Bxh4 {[%clk 0:01:08.9]} 25. Rxh4 {[%clk 0:01:38.3]}
25... Rxd2 {[%clk 0:01:00.5]} 26. Qxd2 {[%clk 0:01:39.2]} 26... Bb5 {[%clk
0:00:46.4]} 27. Rh1 {[%clk 0:01:33.5]} 27... e3 {[%clk 0:00:33.8]} 28. Qxe3
{[%clk 0:01:24.2]} 28... Qxc2+ {[%clk 0:00:33.6]} 29. Ka1 {[%clk 0:01:24.7]}
29... Rc3 {[%clk 0:00:34.2]} 30. Qe1 {[%clk 0:01:22.2]} 30... a4 {[%clk
0:00:22.2]} 31. bxa4 {[%clk 0:01:17.1]} 31... Bc4 {[%clk 0:00:17.2]} 32. Qd1
{[%clk 0:01:12]} 32... Qxg2 {[%clk 0:00:12.6]} 33. Rg1 {[%clk 0:01:11.2]} 33...
Qd5 {[%clk 0:00:12.1]} 34. Qg4 {[%clk 0:00:59.3]} 34... g5 {[%clk 0:00:04.6]}
35. hxg6 {[%clk 0:00:59.2]} 35... f5 {[%clk 0:00:04]} 36. exf6 {[%clk
0:00:58.1]} 36... Ra3 {[%clk 0:00:04.2]} 37. f5 {[%clk 0:00:14]} 37... Rxa2+
{[%clk 0:00:03.7]} 38. Kb1 {[%clk 0:00:14.4]} 38... Bd3+ {[%clk 0:00:04.2]} 39.
Kc1 {[%clk 0:00:09.7]} 39... Ra1+ {[%clk 0:00:04.1]} 40. Kd2 {[%clk 0:00:10]}
40... Bxf5+ {[%clk 0:00:04.8]} 41. Ke3 {[%clk 0:00:08.4]} 41... Qe5+ {[%clk
0:00:04.9]} 42. Kf2 {[%clk 0:00:07.4]} 42... Qxb2+ {[%clk 0:00:04.6]} 43. Qe2
{[%clk 0:00:06.3]} 43... Qxe2+ {[%clk 0:00:04.9]} 44. Kxe2 {[%clk 0:00:07.2]}
44... Rxg1 {[%clk 0:00:05.6]} 0-1

[Event "Early-Titled-Tuesday-Blitz-August-29-2023"]
[Site "Chess.com"]
[Date "2023.08.29"]
[Round "6"]
[White "shimastream"]
[Black "crescentmoon2411"]
[Result "1/2-1/2"]
[WhiteElo "2910"]
[BlackElo "3029"]
[TimeControl "180+1"]
[EndTime "9:07:01 PDT"]
[Termination "Game drawn by repetition"]

1. d4 {[%clk 0:03:00.9]} 1... d5 {[%clk 0:02:58]} 2. c4 {[%clk 0:03:00.2]} 2...
e6 {[%clk 0:02:58.4]} 3. Nc3 {[%clk 0:02:59.8]} 3... c5 {[%clk 0:02:57.9]} 4. e3
{[%clk 0:02:57.1]} 4... Nc6 {[%clk 0:02:57.2]} 5. Nf3 {[%clk 0:02:57.2]} 5...
Nf6 {[%clk 0:02:55.6]} 6. a3 {[%clk 0:02:56.7]} 6... a6 {[%clk 0:02:54.7]} 7.
dxc5 {[%clk 0:02:54.8]} 7... Bxc5 {[%clk 0:02:55.6]} 8. b4 {[%clk 0:02:54.9]}
8... Ba7 {[%clk 0:02:54.6]} 9. Bb2 {[%clk 0:02:55.3]} 9... dxc4 {[%clk
0:02:54.2]} 10. Qxd8+ {[%clk 0:02:49]} 10... Kxd8 {[%clk 0:02:55.1]} 11. Bxc4
{[%clk 0:02:49.2]} 11... b5 {[%clk 0:02:55.1]} 12. Be2 {[%clk 0:02:49.2]} 12...
Bb7 {[%clk 0:02:53]} 13. O-O {[%clk 0:02:49]} 13... Ke7 {[%clk 0:02:53.1]} 14.
Nd2 {[%clk 0:02:47.9]} 14... Rhd8 {[%clk 0:02:44.1]} 15. Nb3 {[%clk 0:02:47.4]}
15... Bb6 {[%clk 0:01:01.2]} 16. Rac1 {[%clk 0:02:40.7]} 16... Rac8 {[%clk
0:00:52.4]} 17. Bf3 {[%clk 0:02:37.6]} 17... Rc7 {[%clk 0:00:41.7]} 18. Ne4
{[%clk 0:02:32.2]} 18... Nxe4 {[%clk 0:00:36.9]} 19. Bxe4 {[%clk 0:02:33.1]}
19... f5 {[%clk 0:00:31.8]} 20. Bf3 {[%clk 0:02:33.1]} 20... g5 {[%clk
0:00:20.4]} 21. h3 {[%clk 0:02:30.1]} 21... Rdc8 {[%clk 0:00:19]} 22. Nc5 {[%clk
0:02:27.9]} 22... Bxc5 {[%clk 0:00:17.9]} 23. Rxc5 {[%clk 0:02:28.8]} 23... Nd8
{[%clk 0:00:18.2]} 24. Rxc7+ {[%clk 0:02:01.8]} 24... Rxc7 {[%clk 0:00:19.1]}
25. Bd1 {[%clk 0:02:02.5]} 25... Bd5 {[%clk 0:00:19.4]} 26. f3 {[%clk
0:02:02.3]} 26... Bc4 {[%clk 0:00:18.7]} 27. Re1 {[%clk 0:02:02.6]} 27... Rd7
{[%clk 0:00:19.1]} 28. Bc3 {[%clk 0:02:03]} 28... Rd3 {[%clk 0:00:19.1]} 29. Bb2
{[%clk 0:02:03.2]} 29... Rd2 {[%clk 0:00:17.7]} 30. Bd4 {[%clk 0:01:59.7]} 30...
Nc6 {[%clk 0:00:17]} 31. Bc5+ {[%clk 0:02:00]} 31... Kf7 {[%clk 0:00:17.1]} 32.
f4 {[%clk 0:01:06]} 32... Bd5 {[%clk 0:00:15.8]} 33. Bf3 {[%clk 0:01:06.6]}
33... Bxf3 {[%clk 0:00:15.7]} 34. gxf3 {[%clk 0:01:07.5]} 34... gxf4 {[%clk
0:00:16.4]} 35. exf4 {[%clk 0:01:08.4]} 35... Rd3 {[%clk 0:00:15.7]} 36. Kg2
{[%clk 0:01:07.3]} 36... Rxa3 {[%clk 0:00:13.7]} 37. Rd1 {[%clk 0:01:07.9]}
37... a5 {[%clk 0:00:11.5]} 38. bxa5 {[%clk 0:00:55.8]} 38... Rxa5 {[%clk
0:00:10.3]} 39. Rd7+ {[%clk 0:00:56]} 39... Kf6 {[%clk 0:00:09.7]} 40. Rc7
{[%clk 0:00:53.6]} 40... Ra6 {[%clk 0:00:09.4]} 41. Rxh7 {[%clk 0:00:52.6]}
41... b4 {[%clk 0:00:08.8]} 42. Rb7 {[%clk 0:00:52.7]} 42... Ra2+ {[%clk
0:00:04.9]} 43. Kg3 {[%clk 0:00:52.9]} 43... Rc2 {[%clk 0:00:03.4]} 44. Bd6
{[%clk 0:00:52.2]} 44... Kg6 {[%clk 0:00:02.5]} 45. h4 {[%clk 0:00:48.7]} 45...
Nd4 {[%clk 0:00:02.8]} 46. Rxb4 {[%clk 0:00:07.6]} 46... Ne2+ {[%clk 0:00:03]}
47. Kh3 {[%clk 0:00:08.1]} 47... Ng1+ {[%clk 0:00:03.5]} 48. Kg3 {[%clk
0:00:08.7]} 48... Ne2+ {[%clk 0:00:04.1]} 49. Kh3 {[%clk 0:00:09.1]} 49... Ng1+
{[%clk 0:00:04.7]} 50. Kg3 {[%clk 0:00:09.6]} 50... Ne2+ {[%clk 0:00:05.2]}
1/2-1/2

[Event "Early-Titled-Tuesday-Blitz-August-29-2023"]
[Site "Chess.com"]
[Date "2023.08.29"]
[Round "6"]
[White "Zurability"]
[Black "Boundless_Strike"]
[Result "1-0"]
[WhiteElo "2712"]
[BlackElo "2526"]
[TimeControl "180+1"]
[EndTime "9:07:01 PDT"]
[Termination "Zurability won by checkmate"]

1. e4 {[%clk 0:02:58.1]} 1... d6 {[%clk 0:02:59.4]} 2. d4 {[%clk 0:02:57.8]}
2... e5 {[%clk 0:02:59.8]} 3. Nf3 {[%clk 0:02:54.9]} 3... Bg4 {[%clk 0:02:59.6]}
4. dxe5 {[%clk 0:02:52.7]} 4... Nc6 {[%clk 0:02:59.5]} 5. h3 {[%clk 0:02:35.4]}
5... Bh5 {[%clk 0:02:55.2]} 6. Bb5 {[%clk 0:02:31.3]} 6... Qd7 {[%clk
0:02:54.2]} 7. Bf4 {[%clk 0:02:18.7]} 7... O-O-O {[%clk 0:02:53.3]} 8. exd6
{[%clk 0:02:15.3]} 8... Qe8 {[%clk 0:02:48]} 9. O-O {[%clk 0:02:10.4]} 9... Bxd6
{[%clk 0:02:41]} 10. Bxd6 {[%clk 0:01:53.1]} 10... Rxd6 {[%clk 0:02:40.7]} 11.
Nbd2 {[%clk 0:01:53.2]} 11... Nf6 {[%clk 0:02:36.5]} 12. Qe1 {[%clk 0:01:44.1]}
12... Re6 {[%clk 0:02:17.1]} 13. e5 {[%clk 0:01:30.9]} 13... Nd7 {[%clk
0:02:15.9]} 14. Bxc6 {[%clk 0:00:43]} 14... Rxc6 {[%clk 0:02:12.3]} 15. Qe3
{[%clk 0:00:43.4]} 15... Kb8 {[%clk 0:02:07.4]} 16. c3 {[%clk 0:00:42.1]} 16...
Re6 {[%clk 0:02:02]} 17. Rfe1 {[%clk 0:00:42.1]} 17... Qe7 {[%clk 0:02:02.6]}
18. Nc4 {[%clk 0:00:21.3]} 18... Bxf3 {[%clk 0:01:06]} 19. Qxf3 {[%clk
0:00:21.3]} 19... f6 {[%clk 0:01:04]} 20. Re3 {[%clk 0:00:12.6]} 20... Nxe5
{[%clk 0:01:00.8]} 21. Nxe5 {[%clk 0:00:13]} 21... Rxe5 {[%clk 0:01:01.7]} 22.
Rae1 {[%clk 0:00:13.8]} 22... Rxe3 {[%clk 0:00:54.1]} 23. Rxe3 {[%clk
0:00:14.7]} 23... Qf7 {[%clk 0:00:50.2]} 24. Qe2 {[%clk 0:00:15.2]} 24... Rd8
{[%clk 0:00:33.5]} 25. a3 {[%clk 0:00:14.3]} 25... a6 {[%clk 0:00:31.5]} 26. Re7
{[%clk 0:00:14.9]} 26... Qg6 {[%clk 0:00:29.8]} 27. Qc4 {[%clk 0:00:12.1]} 27...
Rc8 {[%clk 0:00:25.7]} 28. Kh2 {[%clk 0:00:06.4]} 28... Qf5 {[%clk 0:00:20.1]}
29. f3 {[%clk 0:00:03.3]} 29... g5 {[%clk 0:00:20]} 30. Qe4 {[%clk 0:00:02.5]}
30... Qc5 {[%clk 0:00:17.2]} 31. Rxh7 {[%clk 0:00:02.2]} 31... Qd6+ {[%clk
0:00:17.8]} 32. Kh1 {[%clk 0:00:02.7]} 32... Rd8 {[%clk 0:00:18.5]} 33. Re7
{[%clk 0:00:02.5]} 33... Qd1+ {[%clk 0:00:17]} 34. Kh2 {[%clk 0:00:03.1]} 34...
Qd6+ {[%clk 0:00:17.5]} 35. Kg1 {[%clk 0:00:03.2]} 35... Qc5+ {[%clk 0:00:17]}
36. Qe3 {[%clk 0:00:03.3]} 36... Rd1+ {[%clk 0:00:16.5]} 37. Kh2 {[%clk
0:00:03.2]} 37... Qd6+ {[%clk 0:00:16.7]} 38. f4 {[%clk 0:00:03.9]} 38... b6
{[%clk 0:00:12.7]} 39. Re8+ {[%clk 0:00:04.3]} 39... Ka7 {[%clk 0:00:13.2]} 40.
Qf3 {[%clk 0:00:04.7]} 40... Rd5 {[%clk 0:00:12.8]} 41. Re4 {[%clk 0:00:03.6]}
41... Rf5 {[%clk 0:00:11.1]} 42. Rd4 {[%clk 0:00:03.8]} 42... Qc5 {[%clk
0:00:09.1]} 43. Rd8 {[%clk 0:00:03.9]} 43... c6 {[%clk 0:00:07.8]} 44. Qd3
{[%clk 0:00:04.3]} 44... a5 {[%clk 0:00:02.3]} 45. Qd7+ {[%clk 0:00:04]} 45...
Ka6 {[%clk 0:00:03]} 46. a4 {[%clk 0:00:04.6]} 46... b5 {[%clk 0:00:01.8]} 47.
Ra8+ {[%clk 0:00:04.6]} 47... Kb6 {[%clk 0:00:02.1]} 48. Rb8+ {[%clk 0:00:05.5]}
48... Ka6 {[%clk 0:00:02.5]} 49. Qb7# {[%clk 0:00:06.4]} 1-0

[Event "Early-Titled-Tuesday-Blitz-August-29-2023"]
[Site "Chess.com"]
[Date "2023.08.29"]
[Round "6"]
[White "RandomNoob04"]
[Black "Muracle"]
[Result "0-1"]
[WhiteElo "2644"]
[BlackElo "2505"]
[TimeControl "180+1"]
[EndTime "9:07:01 PDT"]
[Termination "Muracle won by resignation"]

1. e4 {[%clk 0:03:00.9]} 1... c5 {[%clk 0:02:58.2]} 2. d4 {[%clk 0:03:01.5]}
2... cxd4 {[%clk 0:02:58.1]} 3. c3 {[%clk 0:03:02.2]} 3... dxc3 {[%clk 0:02:59]}
4. Nxc3 {[%clk 0:03:03.1]} 4... Nc6 {[%clk 0:02:59.2]} 5. Nf3 {[%clk 0:03:03.8]}
5... e6 {[%clk 0:02:59.7]} 6. Bc4 {[%clk 0:03:04.3]} 6... a6 {[%clk 0:02:59.8]}
7. O-O {[%clk 0:03:04.8]} 7... b5 {[%clk 0:02:54]} 8. Bb3 {[%clk 0:03:04.3]}
8... Na5 {[%clk 0:02:54.1]} 9. Re1 {[%clk 0:02:49.3]} 9... Nxb3 {[%clk
0:02:43.9]} 10. axb3 {[%clk 0:02:49.3]} 10... Bb7 {[%clk 0:02:41.4]} 11. Nd5
{[%clk 0:02:45.2]} 11... Ne7 {[%clk 0:02:41.4]} 12. Bg5 {[%clk 0:02:39.3]} 12...
h6 {[%clk 0:02:41.3]} 13. Bh4 {[%clk 0:02:32.5]} 13... exd5 {[%clk 0:02:39.5]}
14. exd5 {[%clk 0:02:32.7]} 14... d6 {[%clk 0:02:40.2]} 15. Nd4 {[%clk
0:02:25.3]} 15... g5 {[%clk 0:02:40]} 16. Bg3 {[%clk 0:02:25.7]} 16... Qd7
{[%clk 0:02:38.9]} 17. Qf3 {[%clk 0:02:11]} 17... Rg8 {[%clk 0:02:38.7]} 18. Nf5
{[%clk 0:02:08]} 18... Rg6 {[%clk 0:01:59.4]} 19. Nd4 {[%clk 0:00:21.1]} 19...
Rc8 {[%clk 0:01:28.5]} 20. Re3 {[%clk 0:00:18]} 20... Bg7 {[%clk 0:01:13.1]} 21.
Nf5 {[%clk 0:00:17.9]} 21... Be5 {[%clk 0:00:45.5]} 22. Bxe5 {[%clk 0:00:05.6]}
22... Qxf5 {[%clk 0:00:45.5]} 23. Qg3 {[%clk 0:00:06.1]} 23... Nxd5 {[%clk
0:00:38.7]} 24. Ree1 {[%clk 0:00:04.3]} 24... Re6 {[%clk 0:00:27.3]} 25. Bxd6
{[%clk 0:00:04.4]} 25... Nf4 {[%clk 0:00:24.8]} 26. Bxf4 {[%clk 0:00:04]} 26...
Qxf4 {[%clk 0:00:25.2]} 27. Qh3 {[%clk 0:00:04.1]} 27... Rc6 {[%clk 0:00:17.7]}
28. Qxh6 {[%clk 0:00:03.5]} 28... Ke7 {[%clk 0:00:13.8]} 29. Qh8 {[%clk
0:00:02.6]} 29... Rxe1+ {[%clk 0:00:11.6]} 30. Rxe1+ {[%clk 0:00:02.2]} 30...
Re6 {[%clk 0:00:12.5]} 31. Rd1 {[%clk 0:00:01.9]} 31... Rd6 {[%clk 0:00:10.8]}
32. Re1+ {[%clk 0:00:01.9]} 32... Re6 {[%clk 0:00:05.9]} 33. Rd1 {[%clk
0:00:02.3]} 33... Qc7 {[%clk 0:00:05.5]} 34. Qd4 {[%clk 0:00:02.1]} 34... Kf8
{[%clk 0:00:04.3]} 35. Qb4+ {[%clk 0:00:02.4]} 35... Kg7 {[%clk 0:00:04.5]} 36.
Qd4+ {[%clk 0:00:03.3]} 36... Qe5 {[%clk 0:00:04.2]} 37. Qd2 {[%clk 0:00:03.7]}
37... Qe4 {[%clk 0:00:04.6]} 38. Qxg5+ {[%clk 0:00:03.9]} 38... Rg6 {[%clk
0:00:05.2]} 39. Qxg6+ {[%clk 0:00:01.5]} 39... Kxg6 {[%clk 0:00:05.5]} 40. f3
{[%clk 0:00:01.7]} 40... Qe3+ {[%clk 0:00:05.7]} 41. Kh1 {[%clk 0:00:02.3]}
41... Qe2 {[%clk 0:00:05.8]} 42. Rd6+ {[%clk 0:00:03.1]} 42... Kg7 {[%clk
0:00:05.9]} 43. h4 {[%clk 0:00:04]} 43... Bxf3 {[%clk 0:00:06.3]} 44. gxf3
{[%clk 0:00:03.5]} 44... Qxf3+ {[%clk 0:00:07.2]} 45. Kh2 {[%clk 0:00:03.7]}
45... Qf4+ {[%clk 0:00:07.8]} 46. Kh3 {[%clk 0:00:04]} 46... Qxd6 {[%clk
0:00:08.7]} 47. h5 {[%clk 0:00:04.9]} 47... Qe5 {[%clk 0:00:08.9]} 48. h6+
{[%clk 0:00:05.8]} 48... Kxh6 {[%clk 0:00:09.1]} 49. b4 {[%clk 0:00:06.7]} 49...
Qxb2 {[%clk 0:00:09.6]} 50. Kg4 {[%clk 0:00:07.2]} 50... Qxb4+ {[%clk 0:00:10]}
51. Kf5 {[%clk 0:00:08.1]} 51... Qc4 {[%clk 0:00:10.9]} 52. Kf6 {[%clk
0:00:08.9]} 52... a5 {[%clk 0:00:11.8]} 53. Ke7 {[%clk 0:00:09.8]} 53... a4
{[%clk 0:00:12.7]} 54. Kf8 {[%clk 0:00:10.7]} 54... a3 {[%clk 0:00:13.6]} 55.
Kg8 {[%clk 0:00:11.6]} 55... a2 {[%clk 0:00:14.5]} 56. Kh8 {[%clk 0:00:12.5]}
56... a1=Q+ {[%clk 0:00:14.7]} 0-1

[Event "Early-Titled-Tuesday-Blitz-August-29-2023"]
[Site "Chess.com"]
[Date "2023.08.29"]
[Round "6"]
[White "Dewarfd"]
[Black "scandalgod"]
[Result "0-1"]
[WhiteElo "2191"]
[BlackElo "2505"]
[TimeControl "180+1"]
[EndTime "9:07:02 PDT"]
[Termination "scandalgod won on time"]

1. d4 {[%clk 0:03:00.1]} 1... d5 {[%clk 0:02:58.9]} 2. e3 {[%clk 0:02:59.4]}
2... Nf6 {[%clk 0:02:55.5]} 3. Nf3 {[%clk 0:02:58.2]} 3... Bg4 {[%clk 0:02:56]}
4. h3 {[%clk 0:02:57.1]} 4... Bh5 {[%clk 0:02:54.3]} 5. g4 {[%clk 0:02:56.8]}
5... Bg6 {[%clk 0:02:54.2]} 6. Ne5 {[%clk 0:02:56.1]} 6... e6 {[%clk 0:02:04.9]}
7. h4 {[%clk 0:02:55.2]} 7... Nbd7 {[%clk 0:01:59.2]} 8. h5 {[%clk 0:02:45.1]}
8... Be4 {[%clk 0:01:58.1]} 9. f3 {[%clk 0:02:44]} 9... Nxe5 {[%clk 0:01:47.1]}
10. dxe5 {[%clk 0:02:42.6]} 10... Nxg4 {[%clk 0:01:45.3]} 11. fxe4 {[%clk
0:02:36.2]} 11... Nxe5 {[%clk 0:01:43.8]} 12. exd5 {[%clk 0:02:35.7]} 12... exd5
{[%clk 0:01:43.9]} 13. Nc3 {[%clk 0:02:33.4]} 13... c6 {[%clk 0:01:40.9]} 14.
Bg2 {[%clk 0:02:17.4]} 14... Be7 {[%clk 0:01:37.5]} 15. Bd2 {[%clk 0:02:15.2]}
15... Bh4+ {[%clk 0:01:34.8]} 16. Ke2 {[%clk 0:02:08.9]} 16... O-O {[%clk
0:01:34.3]} 17. Qf1 {[%clk 0:02:07.1]} 17... Bg5 {[%clk 0:01:29.9]} 18. Qf5
{[%clk 0:02:02.9]} 18... Nc4 {[%clk 0:01:25.1]} 19. b3 {[%clk 0:01:44.4]} 19...
Nxd2 {[%clk 0:01:24.5]} 20. Kxd2 {[%clk 0:01:44.2]} 20... Re8 {[%clk 0:01:23.1]}
21. Rae1 {[%clk 0:01:43.3]} 21... Bf6 {[%clk 0:01:20.1]} 22. h6 {[%clk
0:01:39.9]} 22... Qa5 {[%clk 0:01:15.7]} 23. Qd3 {[%clk 0:01:38.1]} 23... g6
{[%clk 0:01:08.1]} 24. Rhf1 {[%clk 0:01:34.3]} 24... Be5 {[%clk 0:01:08.4]} 25.
a3 {[%clk 0:01:24.5]} 25... Rad8 {[%clk 0:01:05.2]} 26. Rb1 {[%clk 0:01:07.1]}
26... d4 {[%clk 0:01:02.6]} 27. Ke2 {[%clk 0:00:23.1]} 27... dxc3 {[%clk
0:00:59.2]} 28. Qc4 {[%clk 0:00:23.1]} 28... Qa6 {[%clk 0:00:54.7]} 29. Qxa6
{[%clk 0:00:21.8]} 29... Rd2+ {[%clk 0:00:53.4]} 30. Kf3 {[%clk 0:00:21.4]}
30... bxa6 {[%clk 0:00:53.6]} 31. Rf2 {[%clk 0:00:21.3]} 31... Red8 {[%clk
0:00:51.1]} 32. Rbf1 {[%clk 0:00:21.2]} 32... f5 {[%clk 0:00:49.5]} 33. Bh3
{[%clk 0:00:17.8]} 33... Kf7 {[%clk 0:00:45.1]} 34. Rxd2 {[%clk 0:00:17.7]}
34... Rxd2 {[%clk 0:00:41.7]} 35. Rf2 {[%clk 0:00:16.5]} 35... Kf6 {[%clk
0:00:39.4]} 36. Rxd2 {[%clk 0:00:14.4]} 36... cxd2 {[%clk 0:00:40.3]} 37. Ke2
{[%clk 0:00:15.3]} 37... Bc3 {[%clk 0:00:39.9]} 38. b4 {[%clk 0:00:15.4]} 38...
Ke5 {[%clk 0:00:31.3]} 39. Bg2 {[%clk 0:00:15.5]} 39... Kd6 {[%clk 0:00:30.8]}
40. Bf3 {[%clk 0:00:13.6]} 40... a5 {[%clk 0:00:30.9]} 41. Kd3 {[%clk
0:00:13.9]} 41... axb4 {[%clk 0:00:30]} 42. Kc4 {[%clk 0:00:10]} 42... g5 {[%clk
0:00:18.9]} 43. axb4 {[%clk 0:00:09.8]} 43... g4 {[%clk 0:00:19.2]} 44. Be2
{[%clk 0:00:08.1]} 44... g3 {[%clk 0:00:17.2]} 45. Kxc3 {[%clk 0:00:07.3]} 45...
g2 {[%clk 0:00:17]} 46. Kxd2 {[%clk 0:00:03.6]} 46... g1=Q {[%clk 0:00:17.9]}
47. c4 {[%clk 0:00:04.5]} 47... Qh2 {[%clk 0:00:18.2]} 48. Kd3 {[%clk
0:00:04.3]} 48... c5 {[%clk 0:00:18.2]} 49. b5 {[%clk 0:00:01.9]} 49... Qxh6
{[%clk 0:00:18.2]} 50. Bf3 {[%clk 0:00:02]} 50... Qf6 {[%clk 0:00:18.1]} 51. Bd5
{[%clk 0:00:01.3]} 51... Qe5 {[%clk 0:00:19]} 0-1

[Event "Early-Titled-Tuesday-Blitz-August-29-2023"]
[Site "Chess.com"]
[Date "2023.08.29"]
[Round "6"]
[White "SAInt_666"]
[Black "KrokerGuy"]
[Result "1-0"]
[WhiteElo "2672"]
[BlackElo "2499"]
[TimeControl "180+1"]
[EndTime "9:07:05 PDT"]
[Termination "SAInt_666 won by resignation"]

1. e4 {[%clk 0:03:00.9]} 1... e5 {[%clk 0:02:59.7]} 2. Bc4 {[%clk 0:02:58]} 2...
Nf6 {[%clk 0:02:58.5]} 3. d3 {[%clk 0:02:57.5]} 3... Nc6 {[%clk 0:02:56.7]} 4.
Nc3 {[%clk 0:02:57.5]} 4... Bc5 {[%clk 0:02:54.2]} 5. f4 {[%clk 0:02:57.2]} 5...
O-O {[%clk 0:02:53.7]} 6. Nf3 {[%clk 0:02:56.9]} 6... Ng4 {[%clk 0:02:32.7]} 7.
Ng5 {[%clk 0:02:56.9]} 7... d6 {[%clk 0:02:21.6]} 8. f5 {[%clk 0:02:56.4]} 8...
Ne3 {[%clk 0:02:16.7]} 9. Qh5 {[%clk 0:02:52.7]} 9... h6 {[%clk 0:02:04.8]} 10.
Nxf7 {[%clk 0:02:46.8]} 10... Nxg2+ {[%clk 0:01:19.7]} 11. Kf1 {[%clk
0:02:43.1]} 11... Qh4 {[%clk 0:01:18.9]} 12. Qf3 {[%clk 0:00:49.9]} 12... Ne1
{[%clk 0:00:46.5]} 13. Qg3 {[%clk 0:00:29.5]} 13... Qxg3 {[%clk 0:00:34.2]} 14.
hxg3 {[%clk 0:00:30.4]} 14... Rxf7 {[%clk 0:00:07.2]} 15. Kxe1 {[%clk
0:00:30.7]} 15... Nd4 {[%clk 0:00:03.8]} 16. Kd1 {[%clk 0:00:30.3]} 16... c6
{[%clk 0:00:03]} 17. Bxf7+ {[%clk 0:00:30.2]} 17... Kxf7 {[%clk 0:00:03.9]} 18.
Ne2 {[%clk 0:00:30.9]} 18... Nf3 {[%clk 0:00:03.8]} 19. Rf1 {[%clk 0:00:25.9]}
19... Nh2 {[%clk 0:00:04.1]} 20. Rh1 {[%clk 0:00:26.5]} 20... Nf3 {[%clk
0:00:04.2]} 21. c3 {[%clk 0:00:24.4]} 21... d5 {[%clk 0:00:04.2]} 22. Kc2 {[%clk
0:00:20.5]} 22... dxe4 {[%clk 0:00:03.4]} 23. dxe4 {[%clk 0:00:21.1]} 23... b6
{[%clk 0:00:03.7]} 24. b4 {[%clk 0:00:21]} 24... Be7 {[%clk 0:00:03.2]} 25. Be3
{[%clk 0:00:18.9]} 25... Ba6 {[%clk 0:00:03.5]} 26. Ng1 {[%clk 0:00:18.1]} 26...
Ng5 {[%clk 0:00:01.3]} 27. Bxg5 {[%clk 0:00:17.8]} 27... Bxg5 {[%clk 0:00:02.2]}
28. Nf3 {[%clk 0:00:18.4]} 28... Bf6 {[%clk 0:00:02.4]} 29. Rhe1 {[%clk
0:00:18.5]} 29... Rd8 {[%clk 0:00:02]} 30. Rad1 {[%clk 0:00:18.7]} 30... Ke8
{[%clk 0:00:01.4]} 31. Rxd8+ {[%clk 0:00:18.6]} 31... Kxd8 {[%clk 0:00:02.3]}
32. Kb3 {[%clk 0:00:18.5]} 32... Kc7 {[%clk 0:00:02.5]} 33. c4 {[%clk 0:00:19]}
33... Bc8 {[%clk 0:00:02.6]} 34. Kc3 {[%clk 0:00:19]} 34... Bd7 {[%clk
0:00:02.8]} 35. g4 {[%clk 0:00:19.3]} 35... Be8 {[%clk 0:00:02.4]} 36. Rg1
{[%clk 0:00:19.6]} 36... Kd7 {[%clk 0:00:01.8]} 37. a3 {[%clk 0:00:18.9]} 37...
Ke7 {[%clk 0:00:01.5]} 38. Rg2 {[%clk 0:00:19.3]} 38... g5 {[%clk 0:00:01.1]}
39. Rh2 {[%clk 0:00:19.3]} 39... Bg7 {[%clk 0:00:01.2]} 40. Ne1 {[%clk
0:00:19.2]} 40... Kf6 {[%clk 0:00:01.5]} 41. Nd3 {[%clk 0:00:19.4]} 41... Ke7
{[%clk 0:00:01.8]} 42. Nf2 {[%clk 0:00:20.1]} 42... Kf7 {[%clk 0:00:01.8]} 43.
Nh1 {[%clk 0:00:20.8]} 43... Ke7 {[%clk 0:00:01.8]} 44. Ng3 {[%clk 0:00:21.5]}
44... Bf7 {[%clk 0:00:02]} 45. Nh5 {[%clk 0:00:22.1]} 45... Bxh5 {[%clk
0:00:02.7]} 46. Rxh5 {[%clk 0:00:21.9]} 46... Kd7 {[%clk 0:00:03]} 47. Kd3
{[%clk 0:00:22.3]} 47... Ke7 {[%clk 0:00:02.7]} 48. Ke3 {[%clk 0:00:22.5]} 48...
Kf6 {[%clk 0:00:02.7]} 49. Rh1 {[%clk 0:00:22.5]} 49... Bf8 {[%clk 0:00:02.4]}
50. Rd1 {[%clk 0:00:22.3]} 50... Ke7 {[%clk 0:00:03.1]} 51. Kd3 {[%clk
0:00:21.2]} 51... Bg7 {[%clk 0:00:03.2]} 52. Kc3 {[%clk 0:00:21.8]} 52... Bf8
{[%clk 0:00:03.4]} 53. Kb3 {[%clk 0:00:22.3]} 53... Bg7 {[%clk 0:00:03.2]} 54.
a4 {[%clk 0:00:23]} 54... Bf8 {[%clk 0:00:02.2]} 55. a5 {[%clk 0:00:23.6]} 55...
b5 {[%clk 0:00:01.3]} 56. cxb5 {[%clk 0:00:23.3]} 56... cxb5 {[%clk 0:00:02.2]}
57. Rd5 {[%clk 0:00:23.9]} 57... a6 {[%clk 0:00:01.7]} 58. Rxe5+ {[%clk
0:00:24.4]} 1-0